fUST/lending_fUST_20240925
["ID","MTS","AMOUNT","RATE_DAILY","PERIOD"]
[339101488,1727247038995,-318.037931,0.00014954,2]
[339101489,1727247039005,-859.35776,0.00014954,2]
[339101490,1727247039014,-859.35776,0.00014954,2]
[339101491,1727247039023,-151.0,0.00014954,2]
[339101492,1727247039033,-151.0,0.00014954,2]
[339101493,1727247039042,-544.69957545,0.00014973,2]
[339101494,1727247039051,-500.0,0.00014973,2]
[339101495,1727247039060,-547.02224594,0.00014973,2]
[339101496,1727247039070,-500.95561803,0.00014973,2]
[339101497,1727247039079,-501.1343822,0.00014973,2]
[339101498,1727247039088,-500.79771524,0.00014973,2]
[339101499,1727247039098,-500.0,0.00014973,2]
[339101500,1727247039107,-500.0,0.00014973,2]
[339101501,1727247039117,-151.0,0.0001499,2]
[339101502,1727247039127,-151.0,0.0001499,2]
[339101503,1727247039139,-453.888966,0.0001499,2]
[339101504,1727247039150,-151.0,0.0001499,2]
[339101505,1727247039163,-453.888966,0.0001499,2]
[339101506,1727247039172,-1333.961249,0.0001499,2]
[339101507,1727247039182,-1333.961249,0.0001499,2]
[339101508,1727247039191,-353.957048,0.0001499,2]
[339101509,1727247039201,-353.957048,0.0001499,2]
[339101513,1727247039400,-2030.925849,0.0001499,2]
[339101514,1727247039420,-2030.925849,0.0001499,2]
[339101515,1727247039430,-279.203138,0.0001499,2]
[339101516,1727247039439,-279.203138,0.0001499,2]
[339101517,1727247039449,-957.285073,0.0001499,2]
[339101519,1727247039459,-957.285073,0.0001499,2]
[339101520,1727247039469,-1000.0,0.00015,9]
[339101522,1727247039478,-150.112233,0.00015,2]
[339101524,1727247039488,-150.112233,0.00015,2]
[339101526,1727247039497,-393.480911,0.00015068,2]
[339101528,1727247039506,-150.112233,0.000151,2]
[339101529,1727247039515,-150.112233,0.000151,2]
[339101530,1727247039525,-150.112233,0.000152,2]
[339101531,1727247039535,-150.112233,0.000153,2]
[339101532,1727247039545,-1000.0,0.00015321,2]
[339101533,1727247039557,-628.71719174,0.00015321,2]
[339101534,1727247039567,-1004.80866085,0.00015321,2]
[339101536,1727247039576,-150.112233,0.000154,2]
[339101537,1727247039586,-150.112233,0.000154,2]
[339101538,1727247039595,-151.0,0.0001549,2]
[339101539,1727247039604,-171.557654,0.0001549,2]
[339101540,1727247039614,-171.557654,0.0001549,2]
[339101541,1727247039623,-151.0,0.0001549,2]
[339101542,1727247039632,-1803.519076,0.0001549,2]
[339101543,1727247039641,-1803.519076,0.0001549,2]
[339101544,1727247039651,-207.339698,0.0001549,2]
[339101545,1727247039660,-207.339698,0.0001549,2]
[339101546,1727247039669,-151.0,0.0001549,2]
[339101547,1727247039679,-151.0,0.0001549,2]
[339101548,1727247039688,-151.0,0.0001549,2]
[339101549,1727247039697,-492.75859,0.0001549,2]
[339101550,1727247039707,-492.75859,0.0001549,2]
[339101551,1727247039717,-2416.873656,0.0001549,2]
[339101552,1727247039727,-2416.873656,0.0001549,2]
[339101553,1727247039738,-723.995113,0.0001549,2]
[339101554,1727247039749,-723.995113,0.0001549,2]
[339101555,1727247039762,-175.455661,0.0001549,2]
[339101556,1727247039773,-175.455661,0.0001549,2]
[339101557,1727247039782,-401.302645,0.0001549,2]
[339101558,1727247039791,-401.302645,0.0001549,2]
[339101559,1727247039801,-1158.907245,0.0001549,2]
[339101560,1727247039810,-1158.907245,0.0001549,2]
[339101561,1727247039820,-150.112233,0.000155,2]
[339101562,1727247039829,-151.0,0.00015501,2]
[339101563,1727247039838,-151.0,0.00015501,2]
[339101564,1727247039847,-151.0,0.00015501,2]
[339101565,1727247039857,-492.75859,0.00015501,2]
[339101566,1727247039866,-492.75859,0.00015501,2]
[339101567,1727247039875,-2416.873656,0.00015501,2]
[339101568,1727247039884,-2416.873656,0.00015501,2]
[339101569,1727247039893,-151.0,0.00015501,2]
[339101570,1727247039902,-151.0,0.00015501,2]
[339101571,1727247039912,-453.888966,0.00015501,2]
[339101572,1727247039923,-151.0,0.00015501,2]
[339101573,1727247039933,-453.888966,0.00015501,2]
[339101574,1727247039943,-1333.961249,0.00015501,2]
[339101575,1727247039954,-1333.961249,0.00015501,2]
[339101576,1727247039966,-353.957048,0.00015501,2]
[339101577,1727247039976,-353.957048,0.00015501,2]
[339101578,1727247039985,-2030.925849,0.00015501,2]
[339101579,1727247039994,-723.995113,0.00015501,2]
[339101580,1727247040003,-2030.925849,0.00015501,2]
[339101581,1727247040012,-723.995113,0.00015501,2]
[339101582,1727247040021,-279.203138,0.00015501,2]
[339101583,1727247040031,-279.203138,0.00015501,2]
[339101584,1727247040040,-957.285073,0.00015501,2]
[339101585,1727247040050,-957.285073,0.00015501,2]
[339101586,1727247040059,-500.0,0.00015521,2]
[339101587,1727247040071,-5988.0514922,0.00015547,2]
[339101588,1727247040080,-150.112233,0.000156,2]
[339101589,1727247040089,-153.0,0.000157,2]
[339101590,1727247040098,-153.0,0.000157,2]
[339101591,1727247040107,-150.112233,0.000157,2]
[339101592,1727247040116,-620.47598922,0.00015706,2]
[339101593,1727247040126,-150.112233,0.000158,2]
[339101594,1727247040137,-150.112233,0.000158,2]
[339101595,1727247040147,-150.112233,0.000159,2]
[339101596,1727247040157,-151.0,0.0001594,2]
[339101597,1727247040166,-2000.0,0.0001594,2]
[339101598,1727247040176,-2000.0,0.0001594,2]
[339101599,1727247040185,-2000.0,0.0001594,2]
[339101600,1727247040194,-2000.0,0.0001594,2]
[339101601,1727247040203,-2000.0,0.0001594,2]
[339101602,1727247040213,-2000.0,0.0001594,2]
[339101603,1727247040222,-2000.0,0.0001594,2]
[339101604,1727247040231,-2000.0,0.0001594,2]
[339101605,1727247040241,-2000.0,0.0001594,2]
[339101606,1727247040251,-2000.0,0.0001594,2]
[339101607,1727247040263,-2000.0,0.0001594,2]
[339101608,1727247040272,-2000.0,0.0001594,2]
[339101609,1727247040281,-2000.0,0.0001594,2]
[339101610,1727247040291,-2000.0,0.0001594,2]
[339101611,1727247040302,-2000.0,0.0001594,2]
[339101612,1727247040314,-2000.0,0.0001594,2]
[339101613,1727247040323,-2000.0,0.0001594,2]
[339101614,1727247040335,-2000.0,0.0001594,2]
[339101615,1727247040345,-2000.0,0.0001594,2]
[339101616,1727247040355,-1719.583193,0.0001594,2]
[339101617,1727247040365,-151.0,0.0001594,2]
[339101618,1727247040375,-625.543494,0.0001594,2]
[339101619,1727247040384,-625.543494,0.0001594,2]
[339101620,1727247040393,-859.35776,0.0001594,2]
[339101621,1727247040402,-859.35776,0.0001594,2]
[339101622,1727247040412,-151.0,0.0001594,2]
[339101623,1727247040423,-151.0,0.0001594,2]
[339101624,1727247040434,-500.0,0.0001595,2]
[339101625,1727247040444,-151.0,0.0001595,2]
[339101626,1727247040455,-151.0,0.0001598,2]
[339101627,1727247040465,-1613.875332,0.0001598,2]
[339101628,1727247040475,-1557.93561,0.0001598,2]
[339101629,1727247040485,-1613.875332,0.0001598,2]
[339101630,1727247040494,-1557.93561,0.0001598,2]
[339101631,1727247040504,-242.400023,0.0001598,2]
[339101632,1727247040513,-242.400023,0.0001598,2]
[339101633,1727247040524,-347.947554,0.0001598,2]
[339101634,1727247040535,-347.947554,0.0001598,2]
[339101635,1727247040545,-1373.469193,0.0001598,2]
[339101636,1727247040555,-277.129831,0.0001598,2]
[339101637,1727247040564,-1373.469193,0.0001598,2]
[339101638,1727247040574,-277.129831,0.0001598,2]
[339101639,1727247040584,-151.0,0.0001598,2]
[339101640,1727247040593,-151.0,0.0001598,2]
[339101641,1727247040603,-151.0,0.0001598,2]
[339101642,1727247040612,-151.0,0.0001598,2]
[339101643,1727247040622,-318.037931,0.0001598,2]
[339101644,1727247040632,-318.037931,0.0001598,2]
[339101645,1727247040642,-429.546028,0.0001598,2]
[339101646,1727247040653,-429.546028,0.0001598,2]
[339101647,1727247040664,-594.553542,0.0001598,2]
[339101648,1727247040673,-594.553542,0.0001598,2]
[339101649,1727247040682,-7343.289458,0.0001598,2]
[339101650,1727247040691,-7343.289458,0.0001598,2]
[339101651,1727247040700,-151.0,0.0001599,2]
[339101652,1727247040710,-171.557654,0.0001599,2]
[339101653,1727247040719,-171.557654,0.0001599,2]
[339101655,1727247040729,-151.0,0.0001599,2]
[339101656,1727247040739,-1803.519076,0.0001599,2]
[339101657,1727247040748,-1803.519076,0.0001599,2]
[339101658,1727247040758,-207.339698,0.0001599,2]
[339101659,1727247040767,-207.339698,0.0001599,2]
[339101660,1727247040776,-151.0,0.0001599,2]
[339101661,1727247040785,-151.0,0.0001599,2]
[339101662,1727247040794,-453.888966,0.0001599,2]
[339101663,1727247040804,-151.0,0.0001599,2]
[339101664,1727247040813,-453.888966,0.0001599,2]
[339101665,1727247040822,-1333.961249,0.0001599,2]
[339101666,1727247040831,-1333.961249,0.0001599,2]
[339101667,1727247040841,-353.957048,0.0001599,2]
[339101668,1727247040850,-353.957048,0.0001599,2]
[339101669,1727247040860,-2030.925849,0.0001599,2]
[339101670,1727247040869,-2030.925849,0.0001599,2]
[339101671,1727247040878,-175.455661,0.0001599,2]
[339101672,1727247040887,-175.455661,0.0001599,2]
[339101673,1727247040897,-416.429542,0.0001599,2]
[339101674,1727247040906,-416.429542,0.0001599,2]
[339101675,1727247040917,-279.203138,0.0001599,2]
[339101676,1727247040926,-279.203138,0.0001599,2]
[339101678,1727247040935,-467.06568,0.0001599,2]
[339101680,1727247040945,-467.06568,0.0001599,2]
[339101681,1727247040954,-401.302645,0.0001599,2]
[339101682,1727247040963,-401.302645,0.0001599,2]
[339101683,1727247040972,-957.285073,0.0001599,2]
[339101684,1727247040981,-957.285073,0.0001599,2]
[339101685,1727247040990,-1158.907245,0.0001599,2]
[339101686,1727247040999,-1158.907245,0.0001599,2]
[339101687,1727247041008,-500.0,0.00015992,2]
[339101688,1727247041017,-1007.7710005,0.00015992,2]
[339101689,1727247041027,-1000.0,0.00016,16]
[339101690,1727247041036,-150.112233,0.00016,2]
[339101691,1727247041045,-151.0,0.00016042,2]
[339101692,1727247041054,-151.0,0.00016042,2]
[339101693,1727247041063,-492.75859,0.00016042,2]
[339101694,1727247041072,-492.75859,0.00016042,2]
[339101695,1727247041081,-420.0,0.00016066,2]
[339101696,1727247041090,-150.112233,0.000161,2]
[339101697,1727247041100,-150.112233,0.000161,2]
[339101698,1727247041109,-420.0,0.00016143,2]
[339101699,1727247041120,-150.112233,0.000163,2]
[339101700,1727247041132,-150.112233,0.000163,2]
[339101701,1727247041142,-1500.0,0.00016322,2]
[339101702,1727247041153,-151.0,0.00016338,2]
[339101703,1727247041166,-2416.873656,0.00016338,2]
[339101704,1727247041178,-2416.873656,0.00016338,2]
[339101705,1727247041187,-723.995113,0.00016338,2]
[339101706,1727247041196,-723.995113,0.00016338,2]
[339101707,1727247041205,-3000.0,0.00016338,2]
[339101708,1727247041214,-151.0,0.00016399,2]
[339101709,1727247041223,-171.557654,0.00016399,2]
[339101710,1727247041233,-171.557654,0.00016399,2]
[339101711,1727247041242,-151.0,0.00016399,2]
[339101712,1727247041251,-1803.519076,0.00016399,2]
[339101713,1727247041262,-1803.519076,0.00016399,2]
[339101714,1727247041272,-207.339698,0.00016399,2]
[339101715,1727247041284,-207.339698,0.00016399,2]
[339101716,1727247041295,-151.0,0.00016399,2]
[339101717,1727247041307,-151.0,0.00016399,2]
[339101718,1727247041317,-453.888966,0.00016399,2]
[339101719,1727247041327,-151.0,0.00016399,2]
[339101720,1727247041337,-453.888966,0.00016399,2]
[339101721,1727247041346,-1333.961249,0.00016399,2]
[339101722,1727247041355,-1333.961249,0.00016399,2]
[339101723,1727247041365,-353.957048,0.00016399,2]
[339101724,1727247041374,-353.957048,0.00016399,2]
[339101725,1727247041383,-2030.925849,0.00016399,2]
[339101726,1727247041392,-2030.925849,0.00016399,2]
[339101727,1727247041401,-175.455661,0.00016399,2]
[339101728,1727247041411,-175.455661,0.00016399,2]
[339101729,1727247041421,-279.203138,0.00016399,2]
[339101730,1727247041431,-279.203138,0.00016399,2]
[339101731,1727247041440,-401.302645,0.00016399,2]
[339101732,1727247041449,-401.302645,0.00016399,2]
[339101733,1727247041459,-957.285073,0.00016399,2]
[339101734,1727247041469,-957.285073,0.00016399,2]
[339101735,1727247041478,-1158.907245,0.00016399,2]
[339101736,1727247041488,-1158.907245,0.00016399,2]
[339101737,1727247041497,-5000.0,0.00016427,2]
[339101738,1727247041506,-5000.0,0.00016427,2]
[339101739,1727247041515,-5000.0,0.00016427,2]
[339101740,1727247041524,-5000.0,0.00016427,2]
[339101741,1727247041533,-5000.0,0.00016427,2]
[339101742,1727247041542,-1878.08731195,0.00016427,2]
[339101743,1727247041551,-151.0,0.00016427,2]
[339101744,1727247041560,-151.0,0.00016427,2]
[339101745,1727247041570,-492.75859,0.00016427,2]
[339101746,1727247041579,-492.75859,0.00016427,2]
[339101747,1727247041589,-151.0,0.00016427,2]
[339101748,1727247041598,-151.0,0.00016427,2]
[339101749,1727247041607,-625.543494,0.00016427,2]
[339101750,1727247041618,-625.543494,0.00016427,2]
[339101751,1727247041629,-859.35776,0.00016427,2]
[339101752,1727247041639,-859.35776,0.00016427,2]
[339101753,1727247041650,-151.0,0.00016427,2]
[339101754,1727247041661,-151.0,0.00016427,2]
[339101755,1727247041671,-151.0,0.00016428,2]
[339101756,1727247041682,-151.0,0.00016428,2]
[339101757,1727247041692,-536.791048,0.00016428,2]
[339101758,1727247041701,-151.0,0.00016428,2]
[339101759,1727247041710,-266.158118,0.00016428,2]
[339101760,1727247041718,-536.791048,0.00016428,2]
[339101761,1727247041728,-266.158118,0.00016428,2]
[339101762,1727247041737,-171.765194,0.00016428,2]
[339101763,1727247041746,-151.0,0.00016428,2]
[339101764,1727247041755,-171.765194,0.00016428,2]
[339101765,1727247041766,-213.294328,0.00016428,2]
[339101766,1727247041775,-213.294328,0.00016428,2]
[339101767,1727247041785,-151.0,0.00016428,2]
[339101768,1727247041794,-151.0,0.00016428,2]
[339101769,1727247041803,-151.0,0.00016428,2]
[339101770,1727247041813,-151.0,0.00016428,2]
[339101771,1727247041822,-151.0,0.00016428,2]
[339101772,1727247041832,-2416.873656,0.00016428,2]
[339101773,1727247041842,-2416.873656,0.00016428,2]
[339101774,1727247041850,-723.995113,0.00016428,2]
[339101775,1727247041859,-723.995113,0.00016428,2]
[339101776,1727247041868,-175.455661,0.00016428,2]
[339101777,1727247041878,-175.455661,0.00016428,2]
[339101778,1727247041887,-416.429542,0.00016428,2]
[339101779,1727247041895,-416.429542,0.00016428,2]
[339101780,1727247041904,-151.0,0.00016428,2]
[339101781,1727247041914,-467.06568,0.00016428,2]
[339101782,1727247041923,-467.06568,0.00016428,2]
[339101783,1727247041934,-401.302645,0.00016428,2]
[339101784,1727247041945,-401.302645,0.00016428,2]
[339101785,1727247041956,-1613.875332,0.00016428,2]
[339101786,1727247041967,-1557.93561,0.00016428,2]
[339101787,1727247041977,-1613.875332,0.00016428,2]
[339101788,1727247041986,-1557.93561,0.00016428,2]
[339101789,1727247041996,-242.400023,0.00016428,2]
[339101790,1727247042005,-242.400023,0.00016428,2]
[339101791,1727247042014,-347.947554,0.00016428,2]
[339101792,1727247042023,-347.947554,0.00016428,2]
[339101793,1727247042032,-1158.907245,0.00016428,2]
[339101794,1727247042042,-1158.907245,0.00016428,2]
[339101795,1727247042051,-277.129831,0.00016428,2]
[339101796,1727247042060,-1373.469193,0.00016428,2]
[339101797,1727247042069,-1373.469193,0.00016428,2]
[339101798,1727247042078,-277.129831,0.00016428,2]
[339101799,1727247042088,-151.0,0.00016428,2]
[339101800,1727247042097,-151.0,0.00016428,2]
[339101801,1727247042106,-151.0,0.00016428,2]
[339101802,1727247042116,-151.0,0.00016428,2]
[339101803,1727247042125,-318.037931,0.00016428,2]
[339101805,1727247042134,-318.037931,0.00016428,2]
[339101807,1727247042144,-429.546028,0.00016428,2]
[339101809,1727247042153,-429.546028,0.00016428,2]
[339101811,1727247042163,-594.553542,0.00016428,2]
[339101813,1727247042172,-594.553542,0.00016428,2]
[339101816,1727247042182,-7343.289458,0.00016428,2]
[339101818,1727247042191,-7343.289458,0.00016428,2]
[339101820,1727247042201,-151.0,0.00016438,2]
[339101821,1727247042210,-164.920316,0.00016438,2]
[339101822,1727247042220,-164.920316,0.00016438,2]
[339101823,1727247042232,-151.0,0.00016438,2]
[339101824,1727247042242,-489.443216,0.00016438,2]
[339101825,1727247042253,-489.443216,0.00016438,2]
[339101826,1727247042264,-489.443216,0.00016438,2]
[339101827,1727247042275,-489.443216,0.00016438,2]
[339101828,1727247042284,-443.7018,0.00016438,2]
[339101829,1727247042294,-443.7018,0.00016438,2]
[339101830,1727247042304,-151.0,0.00016438,2]
[339101831,1727247042313,-443.7018,0.00016438,2]
[339101832,1727247042322,-151.0,0.00016438,2]
[339101833,1727247042335,-443.7018,0.00016438,2]
[339101834,1727247042345,-300.956575,0.00016438,2]
[339101835,1727247042354,-300.956575,0.00016438,2]
[339101836,1727247042363,-300.956575,0.00016438,2]
[339101837,1727247042373,-300.956575,0.00016438,2]
[339101838,1727247042384,-151.0,0.00016438,2]
[339101839,1727247042396,-151.0,0.00016438,2]
[339101840,1727247042406,-504.86411272,0.00016438,2]
[339101841,1727247042418,-251.278125,0.00016438,2]
[339101842,1727247042427,-251.278125,0.00016438,2]
[339101843,1727247042438,-251.278125,0.00016438,2]
[339101844,1727247042449,-251.278125,0.00016438,2]
[339101845,1727247042461,-251.278125,0.00016438,2]
[339101846,1727247042471,-251.278125,0.00016438,2]
[339101847,1727247042481,-251.278125,0.00016438,2]
[339101848,1727247042493,-251.278125,0.00016438,2]
[339101849,1727247042503,-151.0,0.00016438,2]
[339101850,1727247042513,-500.0,0.00016438,2]
[339101851,1727247042523,-151.0,0.00016438,2]
[339101852,1727247042532,-151.0,0.00016438,2]
[339101853,1727247042541,-151.0,0.00016438,2]
[339101855,1727247042551,-151.0,0.00016438,2]
[339101856,1727247042560,-151.0,0.00016438,2]
[339101857,1727247042569,-151.0,0.00016438,2]
[339101858,1727247042578,-151.0,0.00016438,2]
[339101859,1727247042588,-207.718254,0.00016438,2]
[339101860,1727247042597,-638.54754248,0.00016438,2]
[339101861,1727247042606,-151.0,0.00016438,2]
[339101862,1727247042615,-151.0,0.00016438,2]
[339101863,1727247042625,-151.0,0.00016438,2]
[339101864,1727247042634,-151.0,0.00016438,2]
[339101865,1727247042643,-151.0,0.00016438,2]
[339101866,1727247042652,-151.0,0.00016438,2]
[339101867,1727247042661,-151.0,0.00016438,2]
[339101868,1727247042672,-151.0,0.00016438,2]
[339101869,1727247042681,-151.0,0.00016438,2]
[339101870,1727247042691,-247.737851,0.00016438,2]
[339101871,1727247042701,-504.14277285,0.00016438,2]
[339101872,1727247042710,-500.0,0.00016438,2]
[339101873,1727247042719,-500.0,0.00016438,2]
[339101874,1727247042729,-500.0,0.00016438,2]
[339101875,1727247042739,-500.0,0.00016438,2]
[339101876,1727247042748,-151.0,0.00016438,2]
[339101877,1727247042757,-276.277042,0.00016438,2]
[339101878,1727247042766,-500.0,0.00016438,2]
[339101879,1727247042776,-555.02831218,0.00016438,2]
[339101880,1727247042786,-500.0,0.00016438,2]
[339101881,1727247042795,-392.44710541,0.00016438,2]
[339101882,1727247042804,-500.0,0.00016438,2]
[339101883,1727247042813,-151.0,0.00016438,2]
[339101884,1727247042824,-151.0,0.00016438,2]
[339101885,1727247042833,-509.68535942,0.00016438,2]
[339101886,1727247042842,-500.0,0.00016438,2]
[339101887,1727247042851,-151.0,0.00016438,2]
[339101888,1727247042861,-536.791048,0.00016438,2]
[339101889,1727247042871,-536.791048,0.00016438,2]
[339101890,1727247042880,-536.791048,0.00016438,2]
[339101891,1727247042890,-500.0,0.00016438,2]
[339101892,1727247042899,-151.0,0.00016438,2]
[339101893,1727247042908,-151.0,0.00016438,2]
[339101894,1727247042918,-151.0,0.00016438,2]
[339101895,1727247042927,-500.0,0.00016438,2]
[339101896,1727247042937,-266.158118,0.00016438,2]
[339101897,1727247042946,-536.791048,0.00016438,2]
[339101898,1727247042956,-536.791048,0.00016438,2]
[339101899,1727247042966,-266.158118,0.00016438,2]
[339101900,1727247042976,-266.158118,0.00016438,2]
[339101901,1727247042988,-536.791048,0.00016438,2]
[339101902,1727247043000,-500.0,0.00016438,2]
[339101903,1727247043010,-266.158118,0.00016438,2]
[339101904,1727247043022,-266.158118,0.00016438,2]
[339101905,1727247043032,-501.77010867,0.00016438,2]
[339101906,1727247043042,-266.158118,0.00016438,2]
[339101907,1727247043053,-500.0,0.00016438,2]
[339101908,1727247043065,-500.0,0.00016438,2]
[339101909,1727247043075,-508.2,0.00016438,2]
[339101910,1727247043084,-500.0,0.00016438,2]
[339101911,1727247043094,-171.765194,0.00016438,2]
[339101912,1727247043102,-171.765194,0.00016438,2]
[339101913,1727247043112,-171.765194,0.00016438,2]
[339101914,1727247043123,-500.0,0.00016438,2]
[339101915,1727247043134,-500.0,0.00016438,2]
[339101916,1727247043144,-151.0,0.00016438,2]
[339101917,1727247043155,-151.0,0.00016438,2]
[339101918,1727247043165,-171.765194,0.00016438,2]
[339101919,1727247043174,-151.0,0.00016438,2]
[339101920,1727247043183,-171.765194,0.00016438,2]
[339101921,1727247043194,-171.765194,0.00016438,2]
[339101922,1727247043203,-500.0,0.00016438,2]
[339101923,1727247043212,-500.0,0.00016438,2]
[339101924,1727247043221,-500.0,0.00016438,2]
[339101925,1727247043230,-500.0,0.00016438,2]
[339101926,1727247043240,-500.0,0.00016438,2]
[339101927,1727247043249,-500.0,0.00016438,2]
[339101928,1727247043261,-523.08,0.00016438,2]
[339101929,1727247043271,-358.17712727,0.00016438,2]
[339101930,1727247043280,-505.13674312,0.00016438,2]
[339101931,1727247043289,-508.99972627,0.00016438,2]
[339101932,1727247043298,-500.0,0.00016438,2]
[339101933,1727247043307,-500.0,0.00016438,2]
[339101934,1727247043316,-500.0,0.00016438,2]
[339101935,1727247043325,-213.294328,0.00016438,2]
[339101936,1727247043334,-213.294328,0.00016438,2]
[339101937,1727247043344,-213.294328,0.00016438,2]
[339101938,1727247043353,-500.0,0.00016438,2]
[339101939,1727247043363,-213.294328,0.00016438,2]
[339101940,1727247043372,-213.294328,0.00016438,2]
[339101941,1727247043382,-213.294328,0.00016438,2]
[339101942,1727247043391,-500.0,0.00016438,2]
[339101943,1727247043400,-500.0,0.00016438,2]
[339101944,1727247043409,-500.0,0.00016438,2]
[339101945,1727247043419,-500.0,0.00016438,2]
[339101946,1727247043429,-500.0,0.00016438,2]
[339101947,1727247043438,-500.0,0.00016438,2]
[339101948,1727247043613,-500.0,0.00016438,2]
[339101949,1727247043623,-500.0,0.00016438,2]
[339101950,1727247043632,-500.0,0.00016438,2]
[339101951,1727247043642,-500.0,0.00016438,2]
[339101952,1727247043652,-500.0,0.00016438,2]
[339101953,1727247043663,-500.0,0.00016438,2]
[339101954,1727247043672,-500.0,0.00016438,2]
[339101955,1727247043682,-500.0,0.00016438,2]
[339101956,1727247043691,-151.0,0.00016438,2]
[339101957,1727247043700,-151.0,0.00016438,2]
[339101958,1727247043710,-151.0,0.00016438,2]
[339101959,1727247043720,-500.0,0.00016438,2]
[339101960,1727247043730,-151.0,0.00016438,2]
[339101961,1727247043739,-151.0,0.00016438,2]
[339101962,1727247043748,-151.0,0.00016438,2]
[339101963,1727247043758,-500.0,0.00016438,2]
[339101964,1727247043768,-500.0,0.00016438,2]
[339101965,1727247043778,-500.0,0.00016438,2]
[339101966,1727247043787,-500.0,0.00016438,2]
[339101967,1727247043796,-501.34975931,0.00016438,2]
[339101968,1727247043805,-500.0,0.00016438,2]
[339101969,1727247043815,-500.0,0.00016438,2]
[339101970,1727247043824,-500.0,0.00016438,2]
[339101971,1727247043833,-500.0,0.00016438,2]
[339101972,1727247043843,-500.0,0.00016438,2]
[339101973,1727247043852,-500.0,0.00016438,2]
[339101974,1727247043861,-500.0,0.00016438,2]
[339101975,1727247043872,-500.0,0.00016438,2]
[339101976,1727247043883,-500.0,0.00016438,2]
[339101977,1727247043893,-500.0,0.00016438,2]
[339101978,1727247043903,-500.0,0.00016438,2]
[339101979,1727247043916,-500.0,0.00016438,2]
[339101980,1727247043926,-500.0,0.00016438,2]
[339101981,1727247043938,-500.0,0.00016438,2]
[339101982,1727247043949,-500.0,0.00016438,2]
[339101983,1727247043960,-500.0,0.00016438,2]
[339101984,1727247043970,-500.0,0.00016438,2]
[339101985,1727247043981,-500.0,0.00016438,2]
[339101986,1727247043991,-500.0,0.00016438,2]
[339101987,1727247044002,-500.0,0.00016438,2]
[339101988,1727247044012,-500.0,0.00016438,2]
[339101989,1727247044024,-579.45331601,0.00016438,2]
[339101990,1727247044036,-502.21732936,0.00016438,2]
[339101991,1727247044045,-500.0,0.00016438,5]
[339101992,1727247044054,-507.07585768,0.00016438,2]
[339101993,1727247044064,-500.0,0.00016438,2]
[339101994,1727247044073,-500.0,0.00016438,2]
[339101995,1727247044083,-500.0,0.00016438,2]
[339101996,1727247044092,-613.14635264,0.00016438,2]
[339101997,1727247044101,-500.0,0.00016438,2]
[339101998,1727247044110,-559.15043652,0.00016438,2]
[339101999,1727247044120,-500.0,0.00016438,2]
[339102000,1727247044129,-500.0,0.00016438,2]
[339102001,1727247044138,-500.0,0.00016438,2]
[339102002,1727247044147,-500.0,0.00016438,2]
[339102003,1727247044156,-626.31,0.00016438,2]
[339102004,1727247044166,-500.0,0.00016438,2]
[339102005,1727247044175,-151.0,0.00016438,2]
[339102006,1727247044184,-151.0,0.00016438,2]
[339102007,1727247044193,-151.0,0.00016438,2]
[339102008,1727247044202,-507.96322002,0.00016438,2]
[339102009,1727247044211,-500.0,0.00016438,2]